lending/lending_fUSD_20260102
["ID","MTS","AMOUNT","RATE_DAILY","PERIOD"]
[400325130,1767375044458,-502.0,0.00038928,20]
[400325131,1767375044467,-1764.38,0.00039036,2]
[400325132,1767375044477,-2067.49876347,0.00039117,2]
[400325133,1767375044485,-167.2,0.00039504,2]
[400325134,1767375044495,-398.56,0.00039654,2]
[400325135,1767375044504,-500.0,0.00039723,20]
[400325136,1767375044513,-2067.49876347,0.00040041,15]
[400325137,1767375044523,-502.0,0.00040136,21]
[400325138,1767375044534,-708.02,0.00040225,30]
[400325139,1767375044543,-7306.19874598,0.0004029,4]
[400325140,1767375044552,-2000.0,0.000403,2]
[400325141,1767375044562,-156.22688056,0.00040338,28]
[400325142,1767375044572,-325.7,0.00040606,2]
[400325143,1767375044581,-1000.0,0.00040896,2]
[400325144,1767375044591,-2067.49876347,0.00040965,15]
[400325145,1767375044600,-400.0,0.00041,120]
[400325146,1767375044610,-500.0,0.00041,120]
[400325147,1767375044619,-322.80933238,0.00041096,2]
[400325149,1767375044629,-167.2,0.00041134,2]
[400325151,1767375044639,-502.0,0.00041344,22]
[400325152,1767375044650,-1300.0,0.0004158,60]
[400325153,1767375044663,-500.0,0.0004158,60]
[400325154,1767375044674,-600.0,0.0004158,60]
[400325155,1767375044684,-191.41872206,0.00041629,7]
[400325156,1767375044693,-9171.08897071,0.00041649,30]
[400325157,1767375044703,-2067.49876347,0.0004189,15]
[400325158,1767375044712,-7306.19874598,0.0004199,4]
[400325159,1767375044722,-382.99,0.00042,120]
[400325161,1767375044732,-200.0,0.00042012,120]
[400325163,1767375044742,-1073.71,0.00042069,120]
[400325165,1767375044751,-1300.0,0.00042128,60]
[400325166,1767375044761,-600.0,0.00042128,60]
[400325167,1767375044771,-500.0,0.0004222,60]
[400325168,1767375044780,-325.7,0.00042452,2]
[400325169,1767375044789,-502.0,0.00042552,24]
[400325170,1767375044799,-150.0,0.00042605,60]
[400325171,1767375044808,-298.0,0.00042605,60]
[400325172,1767375044818,-6862.32049515,0.00042606,15]
[400325173,1767375044827,-14612.397492,0.00042618,4]
[400325174,1767375044841,-159.74919567,0.00042619,30]
[400325175,1767375044851,-6862.32049512,0.00042629,15]
[400325176,1767375044861,-7306.19874598,0.00042633,4]
[400325177,1767375044872,-6862.32049512,0.00042652,15]
[400325178,1767375044882,-7306.19874598,0.00042665,4]
[400325179,1767375044892,-6862.32049512,0.00042675,15]
[400325180,1767375044902,-1300.0,0.00042676,60]
[400325181,1767375044912,-600.0,0.00042676,60]
[400325182,1767375044921,-500.0,0.00042676,60]
[400325183,1767375044931,-7306.19874598,0.00042688,4]
[400325184,1767375044940,-21809.92063085,0.00042697,4]
[400325185,1767375045030,-160845.04801815,0.00042697,4]
[400325186,1767375045039,-6862.32049512,0.00042698,15]
[400325187,1767375045049,-373874.6947,0.00042707,2]
[400325188,1767375045059,-159.74919567,0.00042717,30]
[400325189,1767375045069,-7306.19874598,0.00042719,4]
[400325190,1767375045079,-6862.32049512,0.00042722,15]
[400325191,1767375045089,-150.0,0.00042742,60]
[400325192,1767375045098,-6862.32049512,0.00042745,15]
[400325193,1767375045109,-7306.19874598,0.00042758,4]
[400325194,1767375045119,-167.2,0.00042764,2]
[400325195,1767375045129,-6862.32049512,0.00042768,15]
[400325196,1767375045138,-6862.32049512,0.00042791,15]
[400325197,1767375045148,-7306.19874598,0.00042804,4]
[400325198,1767375045159,-7306.19874598,0.00042806,4]
[400325199,1767375045169,-1956.0,0.00042814,7]
[400325200,1767375045179,-6862.32049512,0.00042814,15]
[400325201,1767375045189,-156.22688056,0.00042814,28]
[400325202,1767375045201,-2067.49876347,0.00042814,15]
[400325203,1767375045210,-5000.0,0.00042816,120]
[400325204,1767375045220,-210.15430686,0.00042816,9]
[400325207,1767375045230,-690.09,0.00042872,30]
[400325208,1767375045243,-200.0,0.00042879,60]
[400325210,1767375045252,-150.0,0.00042887,60]
[400325213,1767375045262,-253.0,0.000429,41]
[400325215,1767375045272,-14612.397492,0.00042903,4]
[400325217,1767375045282,-51143.3912219,0.00042904,4]
[400325218,1767375045291,-151.0,0.00042913,120]
[400325219,1767375045300,-151.0,0.00042913,120]
[400325220,1767375045310,-151.0,0.00042913,120]
[400325221,1767375045319,-186.99194,0.00042913,120]
[400325222,1767375045329,-247.29776083,0.00042913,60]
[400325223,1767375045338,-30454.6121819,0.00042913,2]
[400325224,1767375045348,-999.0,0.00042913,120]
[400325225,1767375045358,-78412.53678525,0.00042914,27]
[400325226,1767375045367,-1000.0,0.00042914,120]
[400325227,1767375045376,-151.0,0.00042914,120]
[400325228,1767375045385,-151.0,0.00042914,120]
[400325229,1767375045394,-12000.0,0.00042914,120]
[400325230,1767375045403,-12000.0,0.00042914,120]
[400325231,1767375045412,-12000.0,0.00042914,120]
[400325232,1767375045422,-12000.0,0.00042914,120]
[400325233,1767375045431,-12000.0,0.00042914,120]
[400325234,1767375045441,-12000.0,0.00042914,120]
[400325235,1767375045451,-12000.0,0.00042914,120]
[400325236,1767375045460,-12000.0,0.00042914,120]
[400325237,1767375045469,-2640.82046595,0.00042914,120]
[400325238,1767375045483,-9359.17953405,0.00042914,120]
[400325239,1767375045492,-2671.01750851,0.00042914,120]
[400325240,1767375045515,-151.0,0.00021097,2]
[400325241,1767375045525,-159.74919567,0.00042814,30]
[400325242,1767375045534,-68.43080833,0.00042914,120]
[400325243,1767375045545,-3224.5983642,0.00042914,120]
[400325244,1767375045555,-810.15496735,0.00042914,120]
[400325245,1767375045607,-5225.79835161,0.00042914,120]
[400325246,1767375045617,-12000.0,0.00042914,120]
[400325247,1767375045626,-12000.0,0.00042914,120]
[400325248,1767375045637,-12000.0,0.00042914,120]
[400325249,1767375045646,-12000.0,0.00042914,120]
[400325250,1767375045656,-12000.0,0.00042914,120]
[400325251,1767375045674,-151.0,0.00042914,120]
[400325252,1767375045683,-205.251425,0.00042914,120]
[400325253,1767375045692,-12000.0,0.00042914,120]
[400325254,1767375045702,-12000.0,0.00042914,120]
[400325255,1767375045712,-12000.0,0.00042914,120]
[400325256,1767375045721,-9816.73818694,0.00042914,120]
[400325257,1767375045741,-2183.26181306,0.00042914,120]
[400325258,1767375045750,-12000.0,0.00042914,120]
[400325259,1767375045760,-12000.0,0.00042914,120]
[400325260,1767375045769,-12000.0,0.00042914,120]
[400325261,1767375045778,-12000.0,0.00042914,120]
[400325262,1767375045788,-2391.405935,0.00042914,120]
[400325263,1767375045826,-9608.594065,0.00042914,120]
[400325264,1767375045836,-2157.39325665,0.00042914,7]
[400325266,1767375125426,273.87594425,0.00017803,2]
[400325267,1767375125449,57.75965575,0.00017803,2]
[400325268,1767375174721,-314.82115071,0.000247,2]
[400325269,1767375174756,-1603.37988258,0.000247,2]
[400325270,1767375174771,-314.82115071,0.000247,2]
[400325271,1767375174782,-848.77678271,0.000247,2]
[400325272,1767375174792,-800.0,0.000248,9]
[400325273,1767375174801,-800.0,0.000248,9]
[400325274,1767375174811,-318.20103329,0.000248,9]
[400325275,1767375316906,-180.0,0.000196,2]
[400325281,1767376151208,-700.0,0.000185,2]
[400325282,1767376151252,-314.0,0.00018975,2]
[400325283,1767376151274,-462.17090894,0.000196,2]
[400325289,1767376231596,-42.82909106,0.000196,2]
[400325290,1767376231606,-164.82,0.00019623,2]
[400325291,1767376231615,-151.0,0.0002089,2]
[400325292,1767376231625,-68.48490095,0.00020915,2]
[400325293,1767376231636,-82.51509905,0.00020915,2]
[400325294,1767376231645,-151.0,0.00020946,2]
[400325295,1767376231656,-93.07259186,0.00021488,3]
[400325296,1767376231668,-411.92740814,0.00021488,3]
[400325297,1767376231678,-314.82115071,0.00023275,2]
[400325298,1767376231688,-505.0,0.00023375,5]
[400325299,1767376231698,-314.8211507,0.00024043,2]
[400325300,1767376231707,-183.37,0.00024208,2]
[400325301,1767376231716,-153.94,0.0002422,2]
[400325302,1767376231727,-152.68,0.00024598,2]
[400325303,1767376231736,-194.83577243,0.0002471,48]
[400325304,1767376231746,-1200.0,0.00024809,2]
[400325305,1767376231755,-800.0,0.0002481,9]
[400325306,1767376231765,-800.0,0.0002481,9]
[400325307,1767376231775,-800.0,0.0002481,9]
[400325308,1767376231785,-800.0,0.0002481,9]
[400325309,1767376231795,-800.0,0.0002481,9]
[400325310,1767376231810,-800.0,0.0002481,9]
[400325311,1767376231819,-800.0,0.0002481,9]
[400325312,1767376231829,-800.0,0.0002481,9]
[400325313,1767376231839,-314.8211507,0.00024811,2]
[400325314,1767376231849,-208.55,0.00024823,2]
[400325315,1767376231858,-6942.80553376,0.0002489,2]
[400325316,1767376231868,-1367.33347356,0.0002489,3]
[400325318,1767376231880,-1501.99056459,0.0002489,3]
[400325321,1767376231892,-684.36394183,0.0002489,3]
[400325323,1767376231904,-580.31999564,0.0002489,3]
[400325325,1767376231915,-872.5988586,0.0002489,3]
[400325327,1767376231927,-15610.12151125,0.0002489,3]
[400325330,1767376231938,-250.3928,0.0002489,3]
[400325332,1767376231950,-414.5029998,0.0002489,3]
[400325334,1767376231961,-3561.00225033,0.0002489,3]
[400325336,1767376231970,-500.0,0.00024899,2]
[400325338,1767376231979,-500.0,0.00024899,2]
[400325340,1767376231990,-263.22870966,0.00024899,2]
[400325342,1767376232000,-503.42768977,0.00024899,2]
[400325344,1767376232010,-621.68788026,0.00024899,2]
[400325346,1767376232019,-500.0,0.00024899,2]
[400325348,1767376232029,-639.44021722,0.00024899,2]
[400325350,1767376232038,-500.0,0.00024899,2]
[400325352,1767376232047,-500.0,0.00024899,2]
[400325354,1767376232056,-500.0,0.00024899,2]
[400325356,1767376232065,-500.0,0.00024899,2]
[400325358,1767376232075,-500.0,0.00024899,2]
[400325359,1767376232086,-500.0,0.00024899,2]
[400325362,1767376232096,-500.0,0.00024899,2]
[400325364,1767376232105,-500.0,0.00024899,2]
[400325365,1767376232116,-500.0,0.00024899,2]
[400325367,1767376232126,-500.0,0.00024899,2]
[400325369,1767376232135,-500.0,0.00024899,2]
[400325372,1767376232150,-500.0,0.00024899,2]
[400325373,1767376232160,-500.0,0.00024899,2]
[400325375,1767376232169,-500.0,0.00024899,2]
[400325377,1767376232178,-500.0,0.00024899,2]
[400325379,1767376232187,-500.0,0.00024899,2]
[400325381,1767376232196,-104.53821917,0.00024899,2]
[400325538,1767376237692,-151.0,0.00020978,2]
[400325539,1767376237703,-194.83577233,0.00024932,48]
[400325540,1767376237713,-194.83577233,0.00025155,49]
[400325541,1767376237722,-243.03073004,0.00025263,7]
[400325542,1767376237747,-261.96926996,0.00025263,7]
[400325543,1767376237757,-194.83577233,0.00025377,49]
[400325544,1767376237766,-194.83577233,0.000256,50]
[400325545,1767376237775,-194.83577233,0.00025822,50]
[400325546,1767376237785,-35.191992,0.00026045,51]
[400325547,1767376237800,-159.64378033,0.00026045,51]
[400325548,1767376237809,-194.83577233,0.00026267,52]
[400325549,1767376237819,-194.83577233,0.0002649,52]
[400325550,1767376237828,-194.83577233,0.00026712,53]
[400325551,1767376237837,-53.2318182,0.0002715,9]
[400325552,1767376237848,-451.7681818,0.0002715,9]
[400325553,1767376237857,-150.0,0.00027158,2]
[400325554,1767376237867,-150.0,0.00027158,2]
[400325555,1767376237876,-235.41792625,0.00027397,30]
[400325556,1767376237887,-8.63207375,0.00027397,30]
[400325557,1767376237897,-200.0,0.00027493,2]
[400325558,1767376237907,-3725.71792767,0.00029034,3]
[400325560,1767376237920,-414.71980493,0.00029034,3]
[400325562,1767376237929,-505.0,0.00029037,11]
[400325564,1767376237938,-1000.0,0.00029044,2]
[400325566,1767376237948,-1000.0,0.00029098,2]
[400325568,1767376237957,-150.0,0.00029772,2]
[400325570,1767376237966,-150.0,0.00030158,2]
[400325572,1767376237975,-150.0,0.00030158,2]
[400325574,1767376237985,-1000.0,0.00030189,2]
[400325576,1767376237998,-505.0,0.00030925,12]
[400325578,1767376238011,-1000.0,0.0003128,2]
[400325580,1767376238020,-244.05,0.00031723,30]
[400325582,1767376238030,-1000.0,0.00032371,2]
[400325585,1767376238041,-505.0,0.00032813,14]
[400325586,1767376238051,-1000.0,0.00033463,2]
[400325589,1767376238061,-500.0,0.00033726,2]
[400325593,1767376238072,-505.0,0.000347,16]
[400325595,1767376238082,-688.322,0.0003519,41]
[400325598,1767376238092,-244.05,0.00036049,30]
[400325600,1767376238102,-530.0,0.00036247,2]
[400325602,1767376238111,-153.94,0.0003633,2]
[400325604,1767376238121,-505.0,0.00036588,18]
[400325606,1767376238131,-150.0,0.00038466,7]
[400325608,1767376238140,-505.0,0.00038475,20]
[400325610,1767376238151,-3993.47817276,0.00038598,4]
[400325613,1767376238166,-146.95955984,0.00038598,4]
[400325615,1767376238175,-300.0,0.00038608,2]
[400325617,1767376238184,-300.0,0.00038608,2]
[400325619,1767376238193,-150.0,0.00038771,7]
[400325621,1767376238205,-294.2839151,0.00038814,2]
[400325623,1767376238214,-798.58680506,0.00038888,30]
[400325625,1767376238226,-33.53549494,0.00038888,30]
[400325627,1767376238235,-150.0,0.00039076,7]
[400325629,1767376238244,-500.0,0.00039199,2]
[400325631,1767376238254,-150.0,0.00039382,7]
[400325632,1767376238264,-150.0,0.00039687,7]
[400325633,1767376238275,-24.46450506,0.00039992,7]
[400325635,1767376238287,-125.53549494,0.00039992,7]
[400325637,1767376238296,-150.0,0.00040297,7]
[400325638,1767376238306,-505.0,0.00040362,21]
[400325639,1767376238316,-184.31565016,0.00040375,120]
[400325640,1767376238328,-59.73434984,0.00040375,120]
[400325641,1767376238338,-500.0,0.00040521,2]
[400325642,1767376238347,-150.0,0.00040603,7]
[400325643,1767376238357,-294.2839151,0.00040815,15]
[400325644,1767376238367,-150.0,0.00040908,7]
[400325645,1767376238377,-312.22638366,0.00041096,2]
[400325646,1767376238387,-150.0,0.00041213,30]
[400325647,1767376238397,-150.0,0.00041519,30]
[400325648,1767376238406,-5164.81850786,0.0004157,4]
[400325649,1767376238422,-7090.1773786,0.0004157,4]
[400325650,1767376238438,-166.31731134,0.0004157,4]
[400325651,1767376238448,-1000.0,0.0004158,60]
[400325652,1767376238457,-440.46633464,0.0004158,60]
[400325653,1767376238469,-59.53366536,0.0004158,60]
[400325654,1767376238479,-500.0,0.0004158,60]
[400325655,1767376238488,-710.65,0.0004158,30]
[400325656,1767376238497,-688.62,0.0004158,30]
[400325657,1767376238507,-296.03567479,0.0004158,30]
[400325658,1767376239686,-305.57387787,0.0004158,30]
[400325659,1767376239740,-103.24044734,0.0004158,30]
[400325660,1767376239752,-699.72,0.0004158,30]
[400325661,1767376239762,-366.55278716,0.0004158,30]
[400325662,1767376239898,-338.07721284,0.0004158,30]
[400325663,1767376239908,-704.12,0.0004158,30]
[400325664,1767376239918,-168.45789132,0.0004158,30]
[400325665,1767376239930,-521.77210868,0.0004158,30]
[400325666,1767376239939,-702.64,0.0004158,30]
[400325667,1767376239950,-3063.35789132,0.00041588,4]
[400325668,1767376239962,-1077.07984128,0.00041588,4]
[400325669,1767376239971,-703.56,0.00041598,30]
[400325670,1767376239981,-191.41872207,0.00041629,7]
[400325671,1767376239992,-695.96,0.00041691,30]
[400325672,1767376240006,-16561.7509304,0.00041765,4]
[400325673,1767376240015,-19549.14955814,0.00041775,2]
[400325674,1767376240031,-578.57186378,0.00041775,2]
[400325707,1767376243303,-1715.1,0.00041775,2]
[400325708,1767376243316,-1288.95483898,0.00041775,2]
[400325709,1767376243329,-2630.64669746,0.00041775,2]
[400325710,1767376243357,-14156.63704164,0.00041775,2]
[400325711,1767376243374,-150.0,0.00041824,30]
[400325712,1767376243388,-4140.4377326,0.00041904,4]
[400325713,1767376243398,-5000.0,0.00041914,120]
[400325714,1767376243408,-700.15,0.00041914,30]
[400325715,1767376243417,-688.63,0.00041914,30]
[400325716,1767376243426,-703.84,0.00041914,30]
[400325717,1767376243436,-1000.0,0.00042128,60]
[400325718,1767376243446,-500.0,0.00042128,60]
[400325719,1767376243455,-150.0,0.00042129,30]
[400325720,1767376243464,-505.0,0.0004225,23]
[400325721,1767376243474,-4140.4377326,0.0004229,4]
[400325722,1767376243484,-2000.0,0.000423,2]
[400325723,1767376243493,-150.0,0.00042434,30]
[400325724,1767376243505,-500.0,0.00042466,2]
[400325725,1767376243515,-510.190094,0.00042467,2]
[400325726,1767376243524,-1000.0,0.00042676,60]
[400325727,1767376243534,-500.0,0.00042676,60]
[400325728,1767376243544,-500.0,0.00042676,60]
[400325729,1767376243554,-150.0,0.0004274,30]
[400325730,1767376243564,-1000.184,0.00042815,120]
[400325731,1767376243574,-294.2839151,0.00042815,15]
[400325732,1767376243584,-284.52,0.00042822,90]
[400325733,1767376243593,-1557.95975534,0.00042856,120]
[400325734,1767376243603,-4140.4377326,0.00042894,4]
[400325735,1767376243612,-253.0,0.000429,41]
[400325736,1767376243622,-4140.4377326,0.00042904,4]
[400325737,1767376243631,-4140.4377326,0.00042904,4]
[400325738,1767376243641,-20702.188663,0.00042905,4]
[400325739,1767376243651,-4140.4377326,0.00042905,4]
[400325740,1767376243660,-4140.4377326,0.00042912,4]
[400325741,1767376243669,-1469.0,0.00042914,7]
[400325742,1767376243679,-706.71,0.00042914,30]
[400325743,1767376243688,-690.15,0.00042914,30]
[400325744,1767376243698,-1000.0,0.00042914,120]
[400325745,1767376243708,-1000.0,0.00042914,60]
[400325746,1767376243718,-1000.0,0.00042914,70]
[400325747,1767376243728,-1000.0,0.00042914,80]
[400325748,1767376243737,-1000.0,0.00042914,90]
[400325749,1767376243746,-1000.0,0.00042914,100]
[400325750,1767376243756,-1000.0,0.00042914,110]
[400325751,1767376243766,-1000.0,0.00042914,120]
[400325752,1767376243776,-1000.0,0.00042914,50]
[400325753,1767376243786,-1000.0,0.00042914,40]
[400325754,1767376243796,-1000.0,0.00042914,45]
[400325755,1767376243806,-200.0,0.00042914,7]
[400325756,1767376244053,-999.0,0.00042914,120]
[400325757,1767376244064,-687.87,0.00042914,30]
[400325758,1767376244074,-44946.82369612,0.00042915,27]
[400325759,1767376244083,-219418.98248632,0.00042915,7]
[400325760,1767376244098,-466.7936093,0.00042915,7]
[400325761,1767376244110,-1614.38715841,0.00042915,7]
[400325762,1767376244328,-611.71535664,0.00042915,7]
[400325763,1767376244340,-2367.41915281,0.00042915,7]
[400325764,1767376244351,-339.6,0.00042915,7]
[400325765,1767376244362,-3411.37260033,0.00042915,7]
[400325766,1767376244373,-3681.900821,0.00042915,7]
[400325767,1767376244386,-267.470874,0.00042915,7]
[400325768,1767376244396,-254.94538776,0.00042915,7]
[400325773,1767376245682,-3067.597645,0.00042915,7]
[400325774,1767376245693,-4311.20327443,0.00042915,7]
[400325775,1767376245765,-692.33650997,0.00042915,7]
[400325776,1767376245777,-109142.84125138,0.00042915,7]
[400325777,1767376245790,-6154.21511341,0.00042915,7]
[400325778,1767376245801,-281.178,0.00042915,7]
[400325779,1767376245844,-4400.33003597,0.00042915,7]
[400325780,1767376245856,-2690.72344982,0.00042915,7]
[400325781,1767376245900,-379.12000001,0.00042915,7]
[400325788,1767376248984,150.0,0.00027158,2]
[400325789,1767376249015,150.0,0.00027158,2]
[400325790,1767376254117,150.0,0.00027158,2]
[400325791,1767376254630,150.0,0.00027158,2]
[400325792,1767376272596,528.37676147,0.00013325,2]
[400325793,1767376291555,-199.86163244,0.00042915,120]
[400325794,1767376291581,-15530.66797029,0.00042915,120]
[400325795,1767376291605,-3521.23882449,0.00042915,30]
[400325796,1767376291631,-1000.0,0.00042915,30]
[400325797,1767376291655,-37524.88,0.00042915,45]
[400325798,1767376291679,-3000.0,0.00042915,120]
[400325799,1767376291710,-3000.0,0.00042915,120]
[400325800,1767376291733,-3186.84,0.00042915,120]
[400325801,1767376291758,-283.84875685,0.00042915,30]
[400325802,1767376291782,-343.36882568,0.00042915,120]
[400325803,1767376291806,-202.34052992,0.00042915,120]
[400325804,1767376291829,-322.75707252,0.00042915,120]
[400325805,1767376291853,-514.32255668,0.00042915,30]
[400325806,1767376291877,-159.01,0.00042915,30]
[400325807,1767376291906,-184.0,0.00042915,120]
[400325808,1767376291931,-283.67503359,0.00042915,120]
[400325809,1767376291954,-266.55264487,0.00042915,120]
[400325810,1767376291978,-213.19623532,0.00042915,120]
[400325811,1767376292001,-278.33598828,0.00042915,60]
[400325812,1767376292026,-213.79872482,0.00042915,120]
[400325813,1767376292052,-220.79464457,0.00042915,30]
[400325814,1767376292081,-357.06989033,0.00042915,60]
[400325815,1767376292114,-197.04109191,0.00042915,120]
[400325816,1767376292140,-192.42444052,0.00042915,120]
[400325817,1767376292167,-189.94071685,0.00042915,120]
[400325818,1767376292190,-162.73843889,0.00042915,120]
[400325819,1767376292215,-188.0,0.00042915,120]
[400325820,1767376292240,-440.51399892,0.00042915,120]
[400325821,1767376292264,-213.76100598,0.00042915,120]
[400325822,1767376292286,-291.68732455,0.00042915,30]
[400325823,1767376292310,-311.13596873,0.00042915,120]
[400325824,1767376292337,-405.26481898,0.00042915,30]
[400325825,1767376292362,-510.21392101,0.00042915,30]
[400325826,1767376292386,-294.03060714,0.00042915,120]
[400325827,1767376292410,-221.96233338,0.00042915,30]
[400325828,1767376292435,-269.95278273,0.00042915,120]
[400325829,1767376292459,-382.10347871,0.00042915,120]
[400325830,1767376292483,-264.40164021,0.00042915,120]
[400325831,1767376292506,-413.64839325,0.00042915,120]
[400325832,1767376292534,-174.71139716,0.00042915,30]
[400325833,1767376292558,-172.25813323,0.00042915,120]
[400325834,1767376292581,-267.07882199,0.00042915,120]
[400325835,1767376292604,-373.24444675,0.00042915,33]
[400325836,1767376292627,-320.79203292,0.00042915,120]
[400325837,1767376292650,-219.30780167,0.00042915,120]
[400325838,1767376292673,-496.61059473,0.00042915,120]
[400325839,1767376292696,-283.35334646,0.00042915,30]
[400325840,1767376292720,-185.96097666,0.00042915,120]
[400325841,1767376292746,-252.56031948,0.00042915,30]
[400325842,1767376292769,-216.23402273,0.00042915,31]
[400325843,1767376292793,-176.1592885,0.00042915,120]
[400325844,1767376292816,-344.24194697,0.00042915,30]
[400325845,1767376292840,-335.22984642,0.00042915,30]
[400325846,1767376292863,-351.61842316,0.00042915,30]
[400325847,1767376292887,-180.47979887,0.00042915,120]
[400325848,1767376292910,-242.84314774,0.00042915,30]
[400325849,1767376292933,-196.60598703,0.00042915,120]
[400325850,1767376292959,-276.45314869,0.00042915,30]
[400325851,1767376292981,-274.30827451,0.00042915,120]
[400325852,1767376293004,-160.13978604,0.00042915,120]
[400325853,1767376293030,-333.09404894,0.00042915,120]
[400325854,1767376293056,-255.42367825,0.00042915,120]
[400325855,1767376293079,-1038.94451701,0.00042915,120]
[400325856,1767376293104,-364.15103951,0.00042915,30]
[400325857,1767376293127,-192.789999,0.00042915,120]
[400325858,1767376293150,-181.0,0.00042915,120]
[400325859,1767376293172,-385.88182487,0.00042915,60]
[400325860,1767376293198,-346.08334,0.00042915,60]
[400325861,1767376293222,-346.08334,0.00042915,60]
[400325862,1767376293246,-346.08334,0.00042915,60]
[400325863,1767376293269,-346.08334,0.00042915,60]
[400325864,1767376293294,-346.08334,0.00042915,60]
[400325865,1767376293317,-206.2133913,0.00042915,30]
[400325866,1767376293341,-351.77883,0.00042915,60]
[400325867,1767376293365,-351.77883,0.00042915,60]
[400325868,1767376293389,-351.77883,0.00042915,60]
[400325869,1767376293414,-351.77883,0.00042915,60]
[400325870,1767376293438,-351.77883,0.00042915,60]
[400325871,1767376293460,-160.0,0.00042915,30]
[400325872,1767376293484,-160.0,0.00042915,30]
[400325873,1767376293508,-160.0,0.00042915,30]
[400325874,1767376293532,-160.0,0.00042915,30]
[400325875,1767376293771,-160.0,0.00042915,30]
[400325876,1767376293796,-160.0,0.00042915,30]
[400325877,1767376293821,-160.0,0.00042915,30]
[400325878,1767376293844,-160.0,0.00042915,30]
[400325879,1767376293868,-160.0,0.00042915,30]
[400325880,1767376293891,-160.0,0.00042915,30]
[400325881,1767376293914,-160.0,0.00042915,30]
[400325882,1767376293938,-207.0,0.00042915,30]
[400325883,1767376293962,-160.0,0.00042915,30]
[400325884,1767376293985,-160.0,0.00042915,30]
[400325885,1767376294013,-160.0,0.00042915,30]
[400325886,1767376294040,-160.0,0.00042915,30]
[400325887,1767376294065,-160.0,0.00042915,30]
[400325888,1767376294090,-160.0,0.00042915,30]
[400325889,1767376294113,-160.0,0.00042915,30]
[400325890,1767376294136,-160.0,0.00042915,30]
[400325891,1767376294161,-160.0,0.00042915,30]
[400325892,1767376294185,-160.0,0.00042915,30]
[400325893,1767376294207,-160.0,0.00042915,30]
[400325894,1767376294231,-207.0,0.00042915,30]
[400325895,1767376294254,-46292.6,0.00042915,120]
[400325896,1767376294277,-311.83259313,0.00042915,120]
[400325897,1767376294301,-208.81336336,0.00042915,120]
[400325898,1767376294325,-205.28384549,0.00042915,120]
[400325899,1767376294349,-204.46548386,0.00042915,120]
[400325900,1767376294372,-336.41888045,0.00042915,120]
[400325901,1767376294398,-203.22195559,0.00042915,120]
[400325902,1767376294424,-178.99788009,0.00042915,120]
[400325903,1767376294449,-574.36513351,0.00042915,120]
[400325904,1767376294472,-184.02821616,0.00042915,120]
[400325905,1767376294496,-207.9338877,0.00042915,120]
[400325906,1767376294519,-189.03177472,0.00042915,120]
[400325907,1767376294542,-220.29582065,0.00042915,120]
[400325908,1767376294566,-216.17198922,0.00042915,120]
[400325909,1767376294590,-212.7055519,0.00042915,120]
[400325910,1767376294614,-199.41756789,0.00042915,120]
[400325911,1767376294637,-185.18039284,0.00042915,120]
[400325912,1767376294661,-173.59897472,0.00042915,120]
[400325913,1767376294684,-201.79884269,0.00042915,120]
[400325914,1767376294707,-176.04327621,0.00042915,120]
[400325915,1767376294729,-181.08043849,0.00042915,120]
[400325916,1767376294753,-178.94393109,0.00042915,60]
[400325917,1767376294776,-211.94405235,0.00042915,120]
[400325918,1767376294801,-211.02658202,0.00042915,120]
[400325919,1767376294823,-217.87129825,0.00042915,120]
[400325920,1767376294846,-175.91270836,0.00042915,120]
[400325921,1767376294869,-218.70073083,0.00042915,120]
[400325922,1767376294893,-182.87557801,0.00042915,120]
[400325923,1767376294916,-185.4190887,0.00042915,120]
[400325924,1767376294939,-216.65094799,0.00042915,120]